bitfinex-derivatives/quotes_ETHF0:USTF0_20240913
["timestamp","ask_amount","ask_price","bid_price","bid_amount"]
[1726244696551,0.3951,2416.4,2416.2,7.78219]
[1726244696758,0.3951,2416.4,2416.2,3.64379]
[1726244697150,0.3951,2416.4,2416.3,0.41379]
[1726244697454,3.2078,2416.7,2416.4,0.41376]
[1726244697763,3.5816,2416.7,2416.6,3.23]
[1726244698359,3.99532,2416.7,2416.6,3.23]
[1726244698559,3.5816,2416.7,2416.6,3.23]
[1726244698959,0.3738,2416.7,2416.6,3.23]
[1726244699159,0.78752,2416.7,2416.6,3.23]
[1726244699360,0.78752,2416.7,2416.4,3.23]
[1726244699561,0.78753,2416.7,2416.4,3.23]
[1726244700364,4.1384,2416.6,2416.0,3.23]
[1726244700660,4.1384,2416.6,2415.6,3.4168]
[1726244700661,0.41381,2416.2,2415.8,3.64387]
[1726244700866,0.3737,2416.1,2416.0,3.23]
[1726244701161,0.3737,2416.1,2416.0,3.64384]
[1726244701463,0.3737,2416.1,2416.0,3.23]
[1726244703761,0.78752,2416.1,2416.0,3.23]
[1726244703961,0.41386,2415.9,2415.8,3.23]
[1726244704167,0.3737,2416.1,2415.8,3.23]
[1726244704387,0.41386,2415.9,2415.8,3.23]
[1726244704968,5.17388,2415.9,2415.6,6.4378]
[1726244705162,0.8211,2415.8,2415.4,7.34]
[1726244705365,0.41391,2415.6,2415.4,7.34]
[1726244705663,0.3996,2415.5,2415.4,3.23]
[1726244708583,0.81353,2415.5,2415.4,3.23]
[1726244708874,0.81353,2415.5,2414.9,4.11]
[1726244708875,1.03486,2415.4,2414.9,7.34]
[1726244709075,0.41401,2415.0,2414.7,3.23]
[1726244709272,0.41406,2414.8,2414.5,10.5478]
[1726244709473,0.373,2414.9,2414.5,6.4378]
[1726244709474,0.3706,2414.7,2414.5,6.4378]
[1726244709674,0.7645,2414.9,2414.6,3.23]
[1726244709874,0.373,2414.9,2414.8,6.4378]
[1726244710266,0.373,2414.9,2414.8,6.85185]
[1726244710470,3.2078,2415.2,2414.8,6.85184]
[1726244710771,3.2078,2415.2,2415.1,3.23]
[1726244711178,0.373,2415.3,2415.1,3.23]
[1726244711567,0.78697,2415.3,2415.1,3.23]
[1726244711776,0.373,2415.3,2415.1,3.23]
[1726244711976,0.41398,2415.2,2415.1,3.23]
[1726244712369,0.41398,2415.2,2414.8,3.2078]
[1726244712370,3.5808,2415.3,2414.9,3.23]
[1726244712580,0.41401,2415.0,2414.9,3.23]
[1726244712776,3.5808,2415.3,2414.9,3.23]
[1726244712985,0.373,2415.3,2414.9,3.23]
[1726244713281,0.41399,2415.2,2414.9,3.23]
[1726244715579,0.41398,2415.2,2414.9,3.23]
[1726244716082,0.373,2415.3,2414.9,3.64402]
[1726244716283,0.41398,2415.2,2415.1,3.23]
[1726244716482,0.373,2415.3,2414.8,3.23]
[1726244716777,0.41398,2415.2,2414.8,3.23]
[1726244716981,0.41403,2415.0,2414.8,3.23]
[1726244717289,0.41403,2414.9,2414.6,3.23]
[1726244717583,0.79193,2414.9,2414.6,3.23]
[1726244718175,0.41405,2414.8,2414.6,3.23]
[1726244718376,0.4043,2414.7,2414.6,3.23]
[1726244718577,0.41409,2414.6,2414.4,3.23]
[1726244718882,0.4043,2414.7,2414.4,3.23]
[1726244719072,0.81837,2414.7,2414.4,3.23]
[1726244719678,0.4043,2414.7,2414.4,3.64411]
[1726244719882,0.4043,2414.7,2414.3,3.2078]
[1726244719883,0.4043,2414.7,2414.6,3.23]
[1726244720087,0.4043,2414.7,2414.6,6.4378]
[1726244720310,0.3865,2415.2,2414.6,10.5794]
[1726244720588,0.3865,2415.2,2414.8,3.23]
[1726244720589,0.3934,2415.1,2414.8,3.23]
[1726244720988,0.3934,2415.1,2414.8,3.64404]
[1726244721187,0.3934,2415.1,2414.8,3.64403]
[1726244721379,0.8074,2415.1,2414.8,3.23]
[1726244722273,0.41402,2415.0,2414.8,3.23]
[1726244723085,0.3934,2415.1,2414.8,3.23]
[1726244723487,0.3934,2415.1,2414.8,3.64404]
[1726244723788,0.3934,2415.1,2414.8,3.23]
[1726244724190,0.3934,2415.1,2414.8,3.64403]
[1726244724683,0.3934,2415.1,2414.8,3.23]
[1726244724896,0.8074,2415.1,2414.8,3.23]
[1726244725591,0.41401,2415.0,2414.8,3.23]
[1726244725788,0.3934,2415.1,2414.8,3.23]
[1726244725980,0.41406,2414.8,2414.6,3.23]
[1726244726181,1.17636,2414.7,2414.6,3.23]
[1726244726384,0.7623,2414.7,2414.6,3.23]
[1726244726589,0.41403,2414.9,2414.6,3.23]
[1726244726788,0.41402,2415.0,2414.8,3.23]
[1726244726987,0.3934,2415.1,2414.8,3.23]
[1726244727180,3.62182,2415.0,2414.8,3.23]
[1726244727382,0.41402,2415.0,2414.8,3.23]
[1726244727894,0.80741,2415.1,2414.8,3.23]
[1726244728226,0.41401,2415.0,2414.8,3.23]
[1726244728396,3.2078,2415.0,2414.6,3.23]
[1726244728690,0.3934,2415.1,2414.6,3.23]
[1726244728691,0.41405,2414.8,2414.6,3.23]
[1726244728899,0.41405,2414.8,2414.4,3.23]
[1726244728900,0.3925,2414.7,2414.4,3.23]
[1726244729189,0.3925,2414.7,2414.2,3.2078]
[1726244729190,0.80708,2414.6,2414.2,6.85194]
[1726244729393,0.393,2414.6,2414.2,6.85194]
[1726244729795,0.80708,2414.6,2414.2,6.85194]
[1726244730290,0.41413,2414.3,2414.2,3.23]
[1726244730501,4.1424,2414.3,2413.7,3.23]
[1726244730695,0.41417,2414.1,2413.7,3.23]
[1726244730899,0.4073,2414.0,2413.7,3.23]
[1726244731082,0.4073,2414.0,2413.9,3.23]
[1726244731397,0.82149,2414.0,2413.7,6.4378]
[1726244731893,0.4073,2414.0,2413.7,6.4378]
[1726244732397,0.41421,2413.9,2413.5,3.23]
[1726244732900,0.4073,2414.0,2413.5,3.23]
[1726244733094,0.41424,2413.7,2413.5,3.23]
[1726244733300,0.3923,2413.6,2413.5,3.23]
[1726244733701,0.3923,2413.6,2413.4,3.2078]
[1726244733994,0.80918,2413.5,2413.1,3.23]
[1726244734300,0.4143,2413.3,2413.1,3.23]
[1726244735098,0.787,2413.4,2413.1,3.23]
[1726244735694,3.2078,2413.2,2412.7,4.11]
[1726244736003,3.2078,2413.2,2412.9,3.23]
[1726244736703,3.62212,2413.2,2412.9,3.23]
[1726244736894,0.41435,2413.1,2412.9,3.23]
[1726244737097,3.2078,2413.2,2412.9,3.23]
[1726244737298,3.2078,2413.2,2413.1,3.23]
[1726244739596,3.62212,2413.2,2413.1,3.23]
[1726244740001,0.41434,2413.1,2412.9,3.23]
[1726244740203,3.62213,2413.2,2412.9,3.23]
[1726244740503,3.2078,2413.2,2412.9,3.23]
[1726244741314,3.62212,2413.2,2412.9,3.23]
[1726244741708,0.41434,2413.1,2412.9,3.23]
[1726244742005,0.41439,2412.8,2412.7,6.4378]
[1726244742302,0.4144,2412.8,2412.3,10.96227]
[1726244742507,0.813,2412.7,2412.4,0.41445]
[1726244742810,0.813,2412.7,2412.3,6.85227]
[1726244743200,0.813,2412.7,2412.3,6.4378]
[1726244743393,0.41443,2412.6,2412.3,6.4378]
[1726244743595,0.41442,2412.6,2412.3,6.4378]
[1726244744622,0.41443,2412.6,2412.3,6.4378]
[1726244744811,1.22742,2412.7,2412.3,6.4378]
[1726244745313,0.41443,2412.6,2412.3,6.4378]
[1726244745496,0.813,2412.7,2412.3,6.4378]
[1726244745695,1.22742,2412.7,2412.3,6.4378]
[1726244745899,0.41442,2412.6,2412.3,6.4378]
[1726244746099,0.41443,2412.6,2412.3,6.4378]
[1726244746297,1.22741,2412.7,2412.3,6.4378]
[1726244746496,0.41442,2412.6,2412.3,6.4378]
[1726244747393,0.813,2412.7,2412.3,6.85227]
[1726244748111,0.813,2412.7,2412.3,6.4378]
[1726244748310,1.22741,2412.7,2412.3,6.4378]
[1726244748508,0.41442,2412.6,2412.3,6.4378]
[1726244749311,1.22742,2412.7,2412.3,6.4378]
[1726244749518,0.41443,2412.6,2412.3,6.4378]
[1726244750010,1.22742,2412.7,2412.3,6.4378]
[1726244750210,0.41442,2412.6,2412.3,6.4378]
[1726244750703,1.22742,2412.7,2412.3,6.4378]
[1726244750906,0.813,2412.7,2412.3,6.85227]
[1726244751103,0.813,2412.7,2412.3,3.62227]
[1726244751302,0.813,2412.7,2412.6,3.23]
[1726244751900,0.4057,2412.7,2412.6,3.23]
[1726244754706,3.2078,2412.9,2412.6,3.23]
[1726244754926,3.2078,2412.9,2412.8,0.41439]
[1726244755305,0.4112,2413.1,2412.8,0.41439]
[1726244755505,0.4143,2413.4,2412.9,3.2078]
[1726244755712,0.41431,2413.3,2413.0,3.23]
[1726244755899,0.8255,2413.4,2413.0,3.64435]
[1726244756104,0.8255,2413.4,2413.3,3.23]
[1726244756105,0.4112,2413.4,2413.3,3.23]
[1726244756504,3.2078,2413.9,2413.3,3.23]
[1726244756709,0.4112,2413.8,2413.7,3.23]
[1726244757502,0.41418,2414.1,2413.7,3.23]
[1726244757716,0.3874,2414.0,2413.7,3.23]
[1726244758023,0.3874,2414.0,2413.7,6.85203]
[1726244758508,0.3874,2414.0,2413.7,6.4378]
[1726244758915,0.8016,2414.0,2413.7,6.4378]
[1726244759118,0.8016,2414.0,2413.7,3.23]
[1726244759607,0.3874,2414.0,2413.7,3.23]
[1726244760203,3.5952,2414.0,2413.7,3.23]
[1726244760419,0.3874,2414.0,2413.7,3.23]
[1726244761510,0.3874,2414.0,2413.5,6.85206]
[1726244763114,0.3874,2414.0,2413.6,0.41425]
[1726244763414,0.3874,2414.0,2413.9,3.23]
[1726244763830,0.3874,2414.0,2413.5,6.85206]
[1726244764032,0.3874,2414.0,2413.6,0.41424]
[1726244764319,0.3874,2414.0,2413.5,6.85206]
[1726244764523,0.3874,2414.0,2413.6,0.41425]
[1726244764818,0.3874,2414.0,2413.5,6.85206]
[1726244765020,0.3874,2414.0,2413.5,6.4378]
[1726244765217,0.80159,2414.0,2413.5,6.85206]
[1726244765615,0.80159,2414.0,2413.5,6.4378]
[1726244765616,0.3874,2414.0,2413.5,6.4378]
[1726244765924,0.41422,2413.8,2413.5,6.4378]
[1726244766117,0.8118,2413.9,2413.5,3.2078]
[1726244766326,0.41424,2413.7,2413.3,4.11]
[1726244766513,0.8118,2413.9,2413.2,3.23]
[1726244766815,0.41427,2413.5,2413.1,3.2078]
[1726244767021,1.2021,2413.4,2413.1,3.2078]
[1726244768918,0.3903,2413.4,2413.2,3.23]
[1726244769119,3.2078,2413.7,2413.2,3.64431]
[1726244769422,3.2078,2413.7,2413.4,3.23]
[1726244769823,1.1863,2413.8,2413.4,6.4378]
[1726244770011,0.4073,2413.8,2413.4,6.4378]
[1726244770220,0.4073,2413.8,2413.6,3.23]
[1726244770724,0.4073,2413.8,2413.4,6.85208]
[1726244770921,0.4073,2413.8,2413.5,0.41427]
[1726244771229,0.4073,2413.8,2413.4,3.64428]
[1726244771721,0.82152,2413.8,2413.3,3.2078]
[1726244772218,0.4073,2413.8,2413.3,3.2078]
[1726244772526,0.4073,2413.8,2413.3,3.6221]
[1726244772816,0.82153,2413.8,2413.3,3.2078]
[1726244773117,0.4073,2413.8,2413.3,3.6221]
[1726244773429,0.82152,2413.8,2413.3,3.6221]
[1726244773811,0.4073,2413.8,2413.3,3.6221]
[1726244774324,0.82152,2413.8,2413.3,3.2078]
[1726244774624,0.4073,2413.8,2413.3,3.6221]
[1726244775125,3.62205,2413.7,2413.2,3.23]
[1726244775621,0.41425,2413.6,2413.2,3.23]
[1726244775818,0.41428,2413.5,2413.2,3.23]
[1726244776011,0.7765,2413.6,2413.2,3.23]
[1726244776209,0.41429,2413.5,2413.0,6.4378]
[1726244776412,0.41429,2413.5,2413.0,6.85215]
[1726244776718,1.19076,2413.6,2413.1,0.41434]
[1726244776919,1.19076,2413.6,2413.0,6.4378]
[1726244777113,0.41427,2413.5,2413.0,6.4378]
[1726244777309,0.41427,2413.5,2413.0,6.85215]
[1726244777310,0.41428,2413.5,2413.0,6.85215]
[1726244777717,1.19076,2413.6,2413.0,6.85215]
[1726244777923,0.7765,2413.6,2413.4,3.23]
[1726244779428,1.19076,2413.6,2413.2,3.23]
[1726244779622,1.19076,2413.6,2413.0,3.2078]
[1726244779623,0.41429,2413.4,2413.0,6.4378]
[1726244779824,0.3787,2413.3,2413.0,6.4378]
[1726244780725,0.3787,2413.3,2413.0,6.85215]
[1726244782113,0.3787,2413.3,2413.0,6.4378]
[1726244782318,0.3787,2413.3,2413.0,6.85214]
[1726244782819,0.3787,2413.3,2413.1,0.41434]
[1726244783327,0.7765,2413.6,2413.2,3.23]
[1726244783630,1.1526,2413.6,2413.2,3.64432]
[1726244783830,1.56686,2413.6,2413.2,3.23]
[1726244784027,1.56686,2413.6,2413.2,3.64431]
[1726244785822,0.41427,2413.5,2413.2,3.23]
[1726244786014,1.56686,2413.6,2413.2,3.64431]
[1726244786221,0.41427,2413.5,2413.2,3.23]
[1726244786724,1.56686,2413.6,2413.2,3.23]
[1726244786925,1.56686,2413.6,2413.2,3.64432]
[1726244788422,1.1526,2413.6,2413.2,3.64432]
[1726244788619,1.1526,2413.6,2413.3,0.4143]
[1726244788820,0.3761,2413.6,2413.4,0.41428]
[1726244789030,0.3761,2413.6,2413.3,0.41429]
[1726244789437,0.79036,2413.6,2413.2,3.64431]
[1726244789731,0.41427,2413.5,2413.2,3.23]
[1726244789917,0.41427,2413.5,2413.2,3.64432]
[1726244790118,0.41429,2413.4,2413.0,6.85215]
[1726244790318,0.3794,2413.4,2413.0,6.4378]
[1726244790518,3.6188,2413.3,2412.7,3.2078]
[1726244790727,3.6188,2413.3,2412.7,3.62219]
[1726244790728,0.41434,2413.1,2412.7,3.62219]
[1726244790919,0.41433,2413.2,2412.7,3.62219]
[1726244791128,0.4048,2413.1,2412.7,3.62219]
[1726244791518,0.4048,2413.1,2412.8,3.64439]
[1726244791823,0.4048,2413.1,2412.9,0.41437]
[1726244792236,0.411,2413.3,2413.0,0.41435]
[1726244792423,0.82531,2413.3,2413.0,6.4378]
[1726244793528,0.41432,2413.2,2413.0,3.23]
[1726244793832,0.41432,2413.2,2413.0,6.4378]
[1726244794027,0.41432,2413.2,2413.0,3.23]
[1726244794627,0.41434,2413.1,2412.8,3.64438]
[1726244794830,0.3933,2413.0,2412.8,3.64438]
[1726244795233,0.80766,2413.0,2412.8,3.23]
[1726244795432,0.3933,2413.0,2412.8,3.23]
[1726244798131,0.3933,2413.0,2412.8,3.64438]
[1726244798334,0.3933,2413.0,2412.9,0.41437]
[1726244799040,0.3933,2413.0,2412.8,3.64438]
[1726244799742,0.3933,2413.0,2412.9,0.41437]
[1726244800137,0.3933,2413.0,2412.8,3.64438]
[1726244800534,0.3933,2413.0,2412.9,0.41437]
[1726244800838,3.09198955,2413.3,2413.0,0.41435]
[1726244800839,0.82531,2413.3,2413.0,0.41435]
[1726244801038,3.06038955,2413.4,2413.0,3.64435]
[1726244801236,2.68098955,2413.3,2413.1,0.41433]
[1726244801437,44.27468955,2413.4,2413.1,0.41433]
[1726244801644,0.4143,2413.3,2413.1,0.41433]
[1726244801939,2.68098955,2413.7,2413.5,0.41426]
[1726244802265,0.41421,2413.9,2413.3,3.23]
[1726244802266,2.68098955,2413.9,2413.3,3.23]
[1726244802542,1.03549,2414.0,2413.3,3.23]
[1726244802543,0.82546,2413.6,2413.3,3.23]
[1726244802729,0.4112,2413.6,2413.3,3.6443]
[1726244804242,0.4112,2413.6,2413.4,0.41429]
[1726244804443,0.4112,2413.6,2413.3,3.64429]
[1726244805346,0.4112,2413.6,2413.4,0.41428]
[1726244805548,2.68098955,2413.8,2413.5,3.64427]
[1726244805740,3.06628955,2413.9,2413.5,6.85206]
[1726244806143,0.79951,2413.9,2413.5,6.85206]
[1726244807041,0.41423,2413.8,2413.5,6.4378]
[1726244807556,0.41423,2413.8,2413.5,3.2078]
[1726244807746,3.06628955,2413.9,2413.5,3.2078]
[1726244808243,0.41422,2413.8,2413.4,3.2078]
[1726244808445,3.09520955,2413.8,2413.4,3.2078]
[1726244808749,0.41425,2413.7,2413.4,3.2078]
[1726244809048,0.3719,2413.6,2413.4,3.2078]
[1726244809243,0.7687,2413.6,2413.4,3.2078]
[1726244809849,0.7687,2413.6,2413.3,3.6443]
[1726244810348,0.7687,2413.6,2413.4,3.2078]
[1726244812256,4.55748,2413.5,2413.1,3.2078]
[1726244812444,0.3865,2413.4,2413.1,0.41434]
[1726244813450,0.3865,2413.4,2413.2,0.41431]
[1726244814552,0.3865,2413.4,2413.1,6.85213]
[1726244815047,0.3865,2413.4,2413.1,6.4378]
[1726244815256,0.3865,2413.4,2413.2,0.41431]
[1726244816143,0.3865,2413.4,2412.9,3.23]
[1726244816342,7.31102955,2413.4,2412.8,0.41438]
[1726244816548,0.41433,2413.2,2412.8,0.41438]
[1726244816751,0.3753,2413.1,2412.9,0.41436]
[1726244816957,0.3753,2413.1,2412.8,0.41438]
[1726244817246,0.396,2413.0,2412.7,3.62221]
[1726244817447,0.3891,2412.9,2412.7,3.62221]
[1726244818444,0.3891,2412.9,2412.7,3.2078]
[1726244819047,0.3891,2412.9,2412.5,0.41443]
[1726244819353,3.07008955,2412.9,2412.4,6.85225]
[1726244819553,3.07008955,2412.9,2412.5,0.41444]
[1726244820059,3.07008955,2412.9,2412.4,6.4378]
[1726244820357,2.68098955,2412.7,2412.4,3.2078]
[1726244820559,5.88878955,2412.8,2412.6,3.23]
[1726244821251,3.2078,2412.8,2412.6,3.23]
[1726244821655,3.2078,2412.8,2412.6,3.64442]
[1726244822355,3.2078,2412.8,2412.6,3.23]
[1726244822857,3.2078,2412.8,2412.6,3.64442]
[1726244823058,3.2078,2412.8,2412.7,0.41441]
[1726244823455,3.05628955,2413.1,2412.7,0.41441]
[1726244823456,2.68098955,2413.1,2412.7,10.5826]
[1726244823648,3.2078,2413.3,2413.0,3.23]
[1726244823649,6.30309955,2413.3,2413.0,3.23]
[1726244823958,3.09530955,2413.2,2412.8,3.64438]
[1726244824256,2.68098955,2413.2,2412.8,3.64438]
[1726244824461,6.30309955,2413.3,2412.9,0.41437]
[1726244824867,2.68098955,2413.2,2412.9,0.41437]
[1726244825053,6.30309955,2413.3,2412.9,0.41437]
[1726244825253,5.88878955,2413.3,2412.9,0.41437]
[1726244825760,2.68098955,2413.2,2412.9,0.41437]
[1726244825958,6.30309955,2413.3,2412.9,0.41437]
[1726244826359,0.41433,2413.2,2412.8,3.64438]
[1726244826555,5.88878955,2413.3,2412.8,3.64438]
[1726244826756,2.68098955,2413.2,2412.7,3.2078]
[1726244827060,0.41437,2412.9,2412.4,6.85225]
[1726244827260,0.7911,2412.8,2412.4,6.85225]
[1726244827465,0.7911,2412.8,2412.5,0.41443]
[1726244827466,1.1788,2412.8,2412.5,0.41443]
[1726244827756,1.1788,2412.8,2412.4,6.4378]
[1726244827757,1.1788,2412.8,2412.6,0.41442]
[1726244828557,1.1788,2412.8,2412.4,6.85225]
[1726244828771,1.1788,2412.8,2412.4,3.2078]
[1726244828956,3.85978955,2412.8,2412.4,6.85225]
[1726244829164,1.1788,2412.8,2412.4,6.85225]
[1726244830155,1.1788,2412.8,2412.5,0.41444]
[1726244830361,1.1788,2412.8,2412.6,3.64441]
[1726244830562,0.3996,2412.8,2412.6,3.64442]
[1726244830963,0.3996,2412.8,2412.7,3.62221]
[1726244831676,0.3996,2412.8,2412.6,3.23]
[1726244831860,0.3996,2412.8,2412.4,3.23]
[1726244832063,0.41441,2412.7,2412.4,3.23]
[1726244832369,0.41441,2412.7,2412.3,3.2078]
[1726244832565,3.08058955,2412.8,2412.3,3.2078]
[1726244832759,2.58243162,2412.6,2412.3,3.2078]
[1726244832962,2.16799162,2412.5,2412.3,3.2078]
[1726244833168,0.4117,2412.4,2412.3,3.2078]
[1726244833377,0.8158,2412.4,2412.3,3.2078]
[1726244839470,1.23026,2412.4,2412.3,3.2078]
[1726244839675,11.37586,2412.4,2412.0,3.2078]
[1726244839874,6.43427162,2412.1,2411.7,4.11]
[1726244840075,3.62236,2411.9,2411.4,3.23]
[1726244840274,3.2078,2411.9,2411.6,3.23]
[1726244840575,3.2078,2411.9,2411.6,3.64459]
[1726244841677,3.2078,2411.9,2411.6,3.23]
[1726244842295,3.2078,2411.9,2411.8,3.23]
[1726244843080,3.5965,2411.9,2411.8,3.23]
[1726244843976,0.41456,2411.8,2411.4,0.41463]
[1726244844175,4.01105,2411.9,2411.5,3.23]
[1726244844476,3.5965,2411.9,2411.5,3.6446]
[1726244844677,4.01104,2411.9,2411.5,3.6446]
[1726244844979,4.01104,2411.9,2411.5,3.64461]
[1726244844980,3.5965,2411.9,2411.5,3.64461]
[1726244845178,3.5965,2411.9,2411.5,3.23]
[1726244845374,4.01106,2411.9,2411.5,3.23]
[1726244846777,4.01104,2411.9,2411.5,3.6446]
[1726244847075,4.01104,2411.9,2411.5,3.23]
[1726244847782,0.41456,2411.8,2411.5,3.23]
[1726244847981,4.01106,2411.9,2411.5,3.23]
[1726244848280,0.41456,2411.8,2411.5,3.23]
[1726244848667,0.409,2411.7,2411.5,3.23]
[1726244848875,0.409,2411.7,2411.5,3.6446]
[1726244849074,3.5965,2411.9,2411.5,3.6446]
[1726244849985,4.01105,2411.9,2411.5,3.6446]
[1726244850181,4.01105,2411.9,2411.5,3.23]
[1726244850377,0.41456,2411.8,2411.4,3.62242]
[1726244850582,0.41456,2411.8,2411.4,3.2078]
[1726244850583,0.41457,2411.8,2411.4,3.2078]
[1726244850979,0.41458,2411.7,2411.4,3.2078]
[1726244851281,0.41461,2411.6,2411.4,3.2078]
[1726244851488,0.3744,2411.6,2411.4,3.2078]
[1726244852179,0.3744,2411.6,2411.4,3.62242]
[1726244852480,4.01106,2411.9,2411.5,3.64461]
[1726244853185,3.5965,2411.9,2411.6,0.41459]
[1726244853395,4.01105,2411.9,2411.5,3.6446]
[1726244853689,3.5965,2411.9,2411.7,0.41458]
[1726244854390,3.5965,2411.9,2411.8,0.41456]
[1726244854580,0.3853,2412.0,2411.8,0.41456]
[1726244854981,0.79983,2412.0,2411.7,6.85237]
[1726244855473,0.3874,2412.1,2411.9,0.41453]
[1726244856191,0.3874,2412.1,2411.4,3.2078]
[1726244856192,0.41456,2411.8,2411.4,3.2078]
[1726244856482,0.41455,2411.9,2411.6,0.41459]
[1726244856687,0.4004,2412.0,2411.8,0.41456]
[1726244857486,0.4004,2412.0,2411.8,0.41455]
[1726244857675,0.4004,2412.0,2411.7,3.23]
[1726244857676,0.81493,2412.0,2411.7,3.64457]
[1726244857990,0.4004,2412.0,2411.7,3.23]
[1726244858285,0.41454,2411.9,2411.6,0.41459]
[1726244858785,0.81494,2412.0,2411.6,0.41459]
[1726244858984,0.4004,2412.0,2411.5,3.23]
[1726244859180,3.62237,2411.8,2411.4,0.41462]
[1726244859381,3.62237,2411.8,2411.5,0.41461]
[1726244859382,0.41457,2411.8,2411.5,0.41461]
[1726244859584,1.03645,2411.7,2411.2,3.23]
[1726244859784,0.41462,2411.5,2411.2,3.23]
[1726244859984,0.41464,2411.4,2411.2,3.23]
[1726244860591,0.41464,2411.4,2411.0,7.75469]
[1726244860996,0.41464,2411.4,2411.0,3.64469]
[1726244861683,0.41465,2411.3,2411.0,3.23]
[1726244862088,0.41464,2411.4,2411.0,3.6447]
[1726244862305,0.41465,2411.3,2411.0,3.6447]
[1726244862491,0.41467,2411.2,2411.0,3.23]
[1726244862700,0.3812,2411.1,2410.9,3.2078]
[1726244862896,3.62242,2411.5,2411.1,0.41467]
[1726244863199,0.41463,2411.4,2411.1,0.41467]
[1726244863498,3.589,2411.5,2411.0,4.01819]
[1726244863791,0.41465,2411.3,2411.0,3.64469]
[1726244864001,0.41465,2411.3,2410.9,6.85251]
[1726244864200,0.4094,2411.2,2410.9,6.85251]
[1726244864590,0.8096,2411.2,2411.0,0.4147]
[1726244867291,0.8096,2411.2,2410.7,0.6871]
[1726244867485,0.8096,2411.2,2411.0,0.41469]
[1726244867891,0.3812,2411.5,2411.0,6.4378]
[1726244868089,0.41467,2411.2,2410.9,0.41471]
[1726244868498,0.41468,2411.2,2410.9,0.41471]
[1726244869394,0.41465,2411.3,2411.0,0.41469]
[1726244870094,0.41465,2411.3,2410.9,3.62251]
[1726244870694,0.41467,2411.2,2410.9,3.2078]
[1726244871094,0.41468,2411.1,2410.9,3.2078]
[1726244871297,0.7747,2411.0,2410.9,3.2078]
[1726244871497,1.1561,2411.0,2410.9,3.2078]
[1726244872507,1.1561,2411.0,2410.8,3.64473]
[1726244872804,1.1561,2411.0,2410.8,3.23]
[1726244872805,0.7834,2411.0,2410.8,3.23]
[1726244873798,0.7834,2411.0,2410.8,3.64472]
[1726244874196,0.402,2411.0,2410.9,0.41472]
[1726244874600,2.16799162,2411.4,2410.9,4.2446]
[1726244874907,0.82022,2411.5,2411.2,3.64466]
[1726244875092,0.4056,2411.5,2411.2,3.23]
[1726244875397,0.41466,2411.3,2411.0,3.23]
[1726244875701,4.7569011,2411.5,2411.0,3.64469]
[1726244875702,0.6097011,2411.5,2411.0,3.64469]
[1726244875895,1.0243211,2411.5,2411.2,0.41466]
[1726244876304,0.6097011,2411.5,2411.0,3.5436]
[1726244876506,0.82021,2411.5,2411.2,0.41466]
[1726244876697,0.82021,2411.5,2411.0,0.3136]
[1726244877000,2.58263162,2411.4,2411.2,3.23]
[1726244877205,0.41464,2411.4,2411.2,3.23]
[1726244877395,2.98821162,2411.5,2411.2,3.23]
[1726244877803,3.2078,2411.4,2411.0,3.64468]
[1726244878005,1.62453575,2411.1,2411.0,3.64468]
[1726244878203,5.79043162,2411.4,2411.1,0.41468]
[1726244878503,5.79042162,2411.4,2411.0,3.23]
[1726244878704,5.37579162,2411.4,2411.0,3.23]
[1726244878897,3.2078,2411.4,2411.2,3.23]
[1726244879298,3.62244,2411.4,2411.2,3.23]
[1726244879593,5.79043162,2411.4,2411.2,3.23]
[1726244879796,5.79043162,2411.4,2411.1,0.41467]
[1726244879993,0.41465,2411.3,2411.0,3.64469]
[1726244880205,5.79043162,2411.4,2411.1,0.41468]
[1726244880605,5.37579162,2411.4,2411.1,0.41468]
[1726244880909,5.37579162,2411.4,2411.0,3.23]
[1726244880910,2.58265162,2411.3,2411.0,3.64469]
[1726244881098,2.16799162,2411.2,2411.0,3.23]
[1726244881301,2.96426162,2411.2,2411.0,3.23]
[1726244881902,2.54959162,2411.2,2411.0,3.23]
[1726244882110,2.16799162,2411.1,2411.0,3.23]
[1726244882311,2.54959162,2411.2,2411.0,3.23]
[1726244882712,2.96425162,2411.2,2411.0,3.23]
[1726244883213,2.16799162,2411.1,2411.0,3.23]
[1726244883414,2.16799162,2411.1,2411.0,3.6447]
[1726244883613,2.16799162,2411.2,2411.1,0.41468]
[1726244883810,2.16799162,2411.3,2411.2,0.41466]
[1726244884007,2.16799162,2411.3,2411.1,0.41467]
[1726244884205,2.58264162,2411.3,2411.0,3.64469]
[1726244884409,2.16799162,2411.2,2411.0,3.23]
[1726244884609,2.16799162,2411.2,2411.0,3.64468]
[1726244884809,2.16799162,2411.2,2411.1,0.41468]
[1726244885119,2.16799162,2411.3,2411.1,0.41468]
[1726244885418,2.16799162,2411.2,2411.1,0.41468]
[1726244885722,2.16799162,2411.2,2411.0,3.64469]
[1726244885922,2.16799162,2411.2,2411.1,0.41468]
[1726244886719,0.41465,2411.3,2411.1,0.41468]
[1726244887322,2.1703346,2411.2,2411.1,0.41468]
[1726244887517,3.2078,2411.4,2411.0,3.23]
[1726244887518,3.08658955,2411.5,2411.0,3.23]